bitfinex/quotes_ETHUSD_20240926
["timestamp","ask_amount","ask_price","bid_price","bid_amount"]
[1727336176396,3.04599,2626.4,2626.2,1.75735676]
[1727336176626,3.04599,2626.4,2626.3,0.07815955]
[1727336176791,3.04599,2626.4,2626.2,1.75735676]
[1727336176792,0.7898,2626.5,2626.2,1.75735676]
[1727336177129,0.7898,2626.5,2626.3,0.07815955]
[1727336177502,0.7898,2626.5,2626.2,1.75735676]
[1727336177819,0.7898,2626.5,2626.3,0.07815955]
[1727336178116,0.7898,2626.5,2626.2,1.75735676]
[1727336178317,0.7898,2626.5,2626.4,0.07840556]
[1727336178556,0.7898,2626.5,2626.3,0.07843662]
[1727336178557,3.9308563,2626.5,2626.3,0.07843662]
[1727336178742,3.83567,2626.5,2626.4,0.07840556]
[1727336179243,3.93085961,2626.5,2626.4,0.07840556]
[1727336179446,0.7898,2626.5,2626.2,1.75735676]
[1727336179735,0.88498944,2626.5,2626.3,0.07843662]
[1727336179895,3.93085944,2626.5,2626.3,0.07843662]
[1727336180096,3.04599,2626.4,2625.9,3.04656]
[1727336180431,3.04599,2626.4,2625.7,3.87052]
[1727336180432,0.88499192,2626.5,2626.0,0.0785298]
[1727336180617,0.8315,2626.1,2625.3,3.87105]
[1727336180792,3.04668,2625.9,2625.5,1.75735676]
[1727336180999,3.04668,2625.9,2625.6,0.07865408]
[1727336181198,0.92671198,2626.1,2625.6,0.07865408]
[1727336181848,0.92671198,2626.1,2625.6,1.83680707]
[1727336182344,0.8315,2626.1,2625.6,0.07865408]
[1727336183099,0.8315,2626.1,2625.4,6.85629251]
[1727336183444,0.8315,2626.1,2625.7,0.07862301]
[1727336183635,0.8315,2626.1,2625.8,0.07859194]
[1727336183836,0.09521303,2626.0,2625.4,4.88189276]
[1727336184043,0.09521303,2626.0,2625.5,0.07868516]
[1727336184339,0.92671312,2626.1,2625.5,0.07868516]
[1727336184544,0.92671312,2626.1,2625.5,3.12570516]
[1727336185052,0.92671312,2626.1,2625.5,4.31356395]
[1727336185243,0.92671312,2626.1,2625.6,3.04691]
[1727336185471,0.92671312,2626.1,2625.7,0.07862301]
[1727336186035,0.92671312,2626.1,2625.5,7.28177879]
[1727336186265,0.92671312,2626.1,2625.6,1.10909313]
[1727336186455,0.92671312,2626.1,2625.6,0.07865408]
[1727336187245,0.92671312,2626.1,2625.6,3.12554408]
[1727336187454,0.8315,2626.1,2625.7,3.04677]
[1727336187746,0.8315,2626.1,2625.8,0.07859194]
[1727336188118,0.8315,2626.1,2625.7,3.04674]
[1727336188320,0.8315,2626.1,2625.9,0.0789475]
[1727336188518,0.8315,2626.1,2625.8,0.07897857]
[1727336188750,0.8315,2626.1,2625.7,3.04674]
[1727336188751,0.8315,2626.1,2626.0,0.07891643]
[1727336189229,0.8315,2626.1,2625.7,3.04674]
[1727336189430,0.8315,2626.1,2625.8,0.07897857]
[1727336189646,0.8315,2626.1,2625.7,3.04674]
[1727336189817,0.8315,2626.1,2625.8,0.07897857]
[1727336190021,0.8315,2626.1,2625.7,3.04674]
[1727336190325,0.8315,2626.1,2625.8,0.07897857]
[1727336190752,0.8315,2626.1,2625.7,3.04674]
[1727336191053,0.8315,2626.1,2625.8,0.07897857]
[1727336191255,0.8315,2626.1,2625.5,3.04696]
[1727336191256,3.87791,2626.1,2625.5,3.04696]
[1727336191457,3.87791,2626.1,2625.1,3.04746]
[1727336191458,0.7974,2625.7,2625.6,0.07904071]
[1727336191665,0.7974,2625.7,2625.2,3.04737]
[1727336191957,0.7974,2625.7,2625.6,0.07904071]
[1727336192115,0.7974,2625.7,2625.2,6.09469]
[1727336192446,0.7974,2625.7,2625.3,0.07990703]
[1727336192641,0.7974,2625.7,2625.2,3.04732]
[1727336192846,0.7974,2625.7,2625.3,0.46191903]
[1727336194516,0.09522043,2625.6,2625.3,0.07990703]
[1727336194722,0.09522043,2625.6,2625.0,3.04754]
[1727336194723,3.14223043,2625.6,2625.0,3.04754]
[1727336194947,3.14223043,2625.6,2625.4,0.08002188]
[1727336195254,0.7964,2625.4,2624.9,4.59908221]
[1727336195561,3.84356,2625.4,2624.9,6.85774221]
[1727336195856,3.84356,2625.4,2624.9,3.04766]
[1727336196045,3.84356,2625.4,2624.7,4.60488221]
[1727336196046,3.04729,2625.3,2624.7,7.65276221]
[1727336196248,6.89077,2625.4,2625.0,0.08014622]
[1727336196425,6.89082,2625.4,2625.0,0.08014622]
[1727336196625,6.89078,2625.4,2625.1,0.08011513]
[1727336196826,6.89078,2625.4,2624.8,4.11792622]
[1727336196827,6.89079,2625.4,2624.8,4.11792622]
[1727336197057,3.84356,2625.4,2624.9,0.08017731]
[1727336197656,0.7964,2625.4,2625.0,3.04759]
[1727336197834,0.7964,2625.4,2625.0,3.12773622]
[1727336199024,3.80804,2625.2,2625.0,0.08014622]
[1727336199367,0.69505961,2625.1,2624.7,3.04796]
[1727336199518,3.90323736,2625.2,2625.1,0.07833186]
[1727336199724,0.85584736,2625.2,2624.7,3.04796]
[1727336199923,3.90323736,2625.2,2625.1,0.07833186]
[1727336200223,1.5509031,2625.2,2625.1,0.07833186]
[1727336200454,3.0475,2625.1,2624.6,3.04807]
[1727336200653,3.90330736,2625.2,2625.1,0.07833186]
[1727336200977,3.04751,2625.1,2624.6,3.04807]
[1727336201327,3.04751,2625.1,2624.5,7.61357221]
[1727336201632,3.04751,2625.1,2624.5,8.67976443]
[1727336201838,3.04751,2625.1,2624.6,3.04801]
[1727336202237,3.04751,2625.1,2624.7,3.04796]
[1727336202448,3.04751,2625.1,2624.5,8.67976443]
[1727336202449,3.04751,2625.1,2624.5,11.72789443]
[1727336202754,3.04751,2625.1,2624.6,3.04806]
[1727336203128,6.09508,2625.1,2624.5,8.67976443]
[1727336203327,3.80807,2625.2,2624.6,0.86797644]
[1727336203566,3.0475,2625.1,2624.6,3.91599644]
[1727336204469,3.0475,2625.1,2624.5,7.61357221]
[1727336204824,3.0475,2625.1,2624.6,3.04801]
[1727336206270,3.80805,2625.2,2624.5,7.61357221]
[1727336206571,0.7606,2625.2,2624.9,3.81008221]
[1727336206773,0.09524476,2625.6,2625.1,3.81008221]
[1727336206774,0.7648,2625.5,2625.1,3.81008221]
[1727336206943,3.09523639,2625.8,2625.3,3.81008221]
[1727336206944,3.81156,2625.8,2625.3,3.81008221]
[1727336207152,0.7648,2625.8,2625.3,3.88626223]
[1727336207369,0.7648,2625.8,2625.4,0.8196]
[1727336207569,0.7648,2625.8,2625.4,1.28256822]
[1727336207744,0.7648,2625.8,2625.4,4.32970822]
[1727336208135,0.7648,2625.8,2625.4,1.28256822]
[1727336208366,0.7648,2625.8,2625.5,3.04699]
[1727336208731,0.7648,2625.8,2625.5,3.04697]
[1727336209485,3.0,2626.1,2625.7,3.81008221]
[1727336209486,0.8025,2626.1,2625.7,3.81008221]
[1727336210301,2.0,2627.1,2625.9,3.81008221]
[1727336210302,0.8025,2626.4,2625.9,3.81008221]
[1727336210467,0.8025,2626.4,2626.0,3.04642]
[1727336210658,0.8025,2626.4,2626.0,1.07015122]
[1727336210970,3.04615,2626.3,2625.9,3.81008221]
[1727336211299,3.04615,2626.3,2626.0,0.07797917]
[1727336211761,3.8485,2626.4,2626.0,0.07797917]
[1727336212094,3.04615,2626.3,2626.1,0.07794811]
[1727336212392,3.8485,2626.4,2625.7,4.98934374]
[1727336212393,3.04625,2626.2,2625.7,4.98934374]
[1727336212624,3.04625,2626.2,2625.7,3.81008221]
[1727336212961,3.04625,2626.2,2625.7,6.85685221]
[1727336213271,3.04625,2626.2,2625.7,3.81008221]
[1727336214058,3.04625,2626.2,2625.7,6.85687221]
[1727336214292,3.04625,2626.2,2625.7,7.92427143]
[1727336215467,3.84855,2626.4,2625.8,3.04668]
[1727336216512,3.04614,2626.3,2625.8,3.04668]
[1727336217080,0.8025,2626.4,2625.9,3.81008221]
[1727336217281,0.8025,2626.4,2626.0,3.73212622]
[1727336217509,6.09167,2626.6,2626.1,3.04633]
[1727336217510,3.80313,2626.6,2626.1,3.04633]
[1727336218096,3.80313,2626.6,2626.0,6.09284]
[1727336218396,3.80313,2626.6,2626.0,3.81739]
[1727336218602,6.84896,2626.6,2626.0,3.81739]
[1727336218797,3.80313,2626.6,2626.0,3.81739]
[1727336218974,3.04587,2626.5,2626.0,3.81739]
[1727336219287,3.80313,2626.6,2626.0,3.81739]
[1727336219628,3.04588,2626.5,2626.0,3.81739]
[1727336220287,3.80313,2626.6,2626.0,3.81739]
[1727336220495,3.0459,2626.5,2626.0,3.81739]
[1727336224012,3.04606,2626.4,2626.0,0.771]
[1727336226081,3.04606,2626.4,2626.1,0.07713816]
[1727336227872,3.8636,2626.8,2626.2,3.81008221]
[1727336228078,3.083767,2626.9,2626.4,7.68017221]
[1727336228476,3.083767,2626.9,2626.5,0.07701393]
[1727336228886,0.038327,2626.9,2626.6,3.81008221]
[1727336229085,0.038327,2626.9,2626.6,3.88706509]
[1727336235157,3.04553,2626.8,2626.6,0.07698288]
[1727336235511,3.04553,2626.8,2626.4,4.63418221]
[1727336235687,3.04553,2626.8,2626.5,0.07663467]
[1727336241197,3.083737,2626.9,2626.5,0.07663467]
[1727336242413,3.083737,2626.9,2626.5,1.83349439]
[1727336242727,3.04553,2626.8,2626.5,1.83349439]
[1727336242937,6.09114,2626.8,2626.5,1.83349439]
[1727336243228,3.04565,2626.7,2626.5,1.83349439]
[1727336243831,3.04553,2626.8,2626.5,1.83349439]
[1727336247617,0.038327,2626.9,2626.5,1.83349439]
[1727336248015,0.038327,2626.9,2626.5,4.87930439]
[1727336251747,3.083757,2626.9,2626.5,1.83349439]
[1727336252810,0.038327,2626.9,2626.5,1.83349439]
[1727336253015,0.038327,2626.9,2626.5,4.87936439]
[1727336254350,0.038327,2626.9,2626.8,0.7701]
[1727336254552,0.038327,2626.9,2626.8,0.84667795]
[1727336254752,2.833507,2627.1,2626.8,0.34667795]
[1727336254953,3.20375597,2627.1,2626.8,0.34667795]
[1727336255467,6.24901597,2627.1,2626.8,0.34667795]
[1727336255642,3.20375597,2627.1,2626.8,0.34667795]
[1727336256256,0.0382175,2627.6,2627.1,3.04511]
[1727336256552,0.0382175,2627.6,2627.4,1.75685972]
[1727336256725,0.0382175,2627.6,2627.5,0.07601062]
[1727336257966,0.0382175,2627.6,2627.5,0.88971062]
[1727336258455,0.0382175,2627.6,2627.5,0.07601062]
[1727336258816,0.0382175,2627.6,2627.2,5.61554972]
[1727336259017,0.0382175,2627.6,2627.5,0.07599603]
[1727336259216,0.0382175,2627.6,2627.2,0.7996]
[1727336259449,0.0382175,2627.6,2627.2,2.55645972]
[1727336259920,0.0382175,2627.6,2627.2,3.42113869]
[1727336260251,0.0382175,2627.6,2627.4,1.75685972]
[1727336260960,0.0382175,2627.6,2627.4,4.80168972]
[1727336261123,0.0382175,2627.6,2627.5,0.8014]
[1727336263921,0.0382175,2627.6,2627.5,4.60508733]
[1727336264260,0.0382175,2627.6,2627.5,5.37006806]
[1727336266254,0.0382175,2627.6,2627.5,0.8014]
[1727336266457,0.0382175,2627.6,2627.2,3.04498]
[1727336266458,3.0828175,2627.6,2627.2,3.80368733]
[1727336267961,3.0828175,2627.6,2627.1,3.04511]
[1727336267962,0.765,2627.5,2627.1,3.04511]
[1727336268172,3.0828175,2627.6,2626.4,3.79854661]
[1727336268173,3.81024,2627.1,2626.6,0.7886]
[1727336269955,3.83335,2627.3,2626.7,3.04556]
[1727336270165,3.04513,2627.2,2626.6,7.63797733]
[1727336270331,3.04513,2627.2,2626.7,0.76379773]
[1727336271162,3.04513,2627.2,2626.8,0.07018514]
[1727336271337,3.04513,2627.2,2626.7,0.76379773]
[1727336271535,3.04513,2627.2,2626.8,0.07018514]
[1727336271740,3.04513,2627.2,2626.6,7.63797733]
[1727336272067,3.04513,2627.2,2626.7,0.07021618]
[1727336275027,3.04518,2627.1,2626.7,0.07021618]
[1727336278647,0.09516606,2627.5,2626.7,0.07021618]
[1727336278648,3.85697,2626.9,2626.7,0.07021618]
[1727336278828,0.385697,2626.8,2626.7,0.07021618]
[1727336279046,3.04576,2626.6,2626.2,0.7722]
[1727336279468,3.04576,2626.6,2626.0,10.48638]
[1727336279469,3.0459,2626.5,2626.0,3.81858]
[1727336279635,3.04621,2626.3,2626.0,0.7722]
[1727336279966,3.04621,2626.3,2625.8,3.04664]
[1727336280219,3.04621,2626.3,2625.9,0.43334463]
[1727336280342,3.04621,2626.3,2625.8,4.03633873]
[1727336280553,0.7557,2626.5,2626.0,6.85005733]
[1727336280875,0.8062,2626.7,2626.2,3.04616]
[1727336281175,0.8062,2626.7,2626.2,6.84984733]
[1727336281349,0.8062,2626.7,2626.3,3.04608]
[1727336282573,0.8062,2626.7,2626.4,3.04596]
[1727336282739,3.80763,2627.0,2626.5,3.04586]
[1727336283245,0.7623,2627.0,2626.6,3.04574]
[1727336283448,3.04523,2627.1,2626.6,4.11489873]
[1727336283664,3.04523,2627.1,2626.6,3.04574]
[1727336283849,3.04523,2627.1,2626.5,3.84216]
[1727336283850,6.09049,2627.1,2626.5,3.84216]
[1727336284071,3.04523,2627.1,2626.5,3.84216]
[1727336284271,3.04523,2627.1,2626.5,3.84209]
[1727336284595,6.09048,2627.1,2626.5,3.84209]
[1727336284761,3.04523,2627.1,2626.6,3.04575]
[1727336285587,3.04523,2627.1,2626.7,3.80368733]
[1727336286272,3.04523,2627.1,2626.8,0.07055644]
[1727336286461,6.09048,2627.1,2626.8,0.07055644]
[1727336286661,6.09048,2627.1,2626.7,3.80368733]
[1727336286897,6.09048,2627.1,2626.9,0.07052539]
[1727336287194,3.04523,2627.1,2627.0,0.07049435]
[1727336287403,3.04523,2627.1,2626.7,3.80368733]
[1727336287573,3.04523,2627.1,2626.6,3.04575]
[1727336287574,6.09049,2627.1,2626.8,0.07055644]
[1727336287897,3.04564,2626.7,2626.2,3.85696]
[1727336288059,3.04564,2626.7,2626.2,0.8108]
[1727336288897,3.04564,2626.7,2626.0,15.05516733]
[1727336288898,3.04594,2626.5,2626.0,15.05516733]
[1727336289209,3.04594,2626.5,2626.0,7.61516733]
[1727336289495,3.04594,2626.5,2626.0,4.56878733]
[1727336289496,6.09192,2626.5,2626.0,4.56878733]
[1727336289705,3.04599,2626.4,2626.0,0.7651]
[1727336289858,3.04599,2626.4,2626.1,0.43298137]
[1727336290060,3.04599,2626.4,2625.9,3.04654]
[1727336290358,3.04577,2626.6,2626.0,3.04645]
[1727336290558,6.0916,2626.6,2626.0,6.85013733]
[1727336290969,0.7848,2626.7,2626.1,3.04624]
[1727336291173,0.7848,2626.7,2626.2,6.84980733]
[1727336291174,3.8305,2626.7,2626.2,6.84980733]
[1727336291414,3.83048,2626.7,2626.2,6.84980733]
[1727336291629,0.7848,2626.7,2626.2,6.84980733]
[1727336291790,0.7848,2626.7,2626.2,7.91782427]
[1727336291973,0.7848,2626.7,2626.4,3.04599]
[1727336292171,3.79877,2627.0,2626.2,5.64630427]
[1727336292518,3.79877,2627.0,2626.4,3.04599]
[1727336292875,3.04541,2626.9,2626.3,3.04601]
[1727336293211,6.84416,2627.0,2626.4,3.04598]
[1727336293411,3.04542,2626.9,2626.3,3.04601]
[1727336293611,3.04542,2626.9,2626.4,0.76242973]
[1727336294219,6.84416,2627.0,2626.4,3.80840973]
[1727336294521,6.84416,2627.0,2626.4,0.76242973]
[1727336295511,6.84415,2627.0,2626.4,3.80837973]
[1727336296215,6.84416,2627.0,2626.4,3.04595]
[1727336296515,3.04544,2626.9,2626.4,3.04595]
[1727336297913,3.79877,2627.0,2625.9,3.80368733]
[1727336297914,3.04597,2626.5,2625.9,3.80368733]
[1727336298081,0.7879,2626.4,2625.9,3.04656]
[1727336299700,0.7879,2626.4,2625.8,3.81519]
[1727336300012,3.04612,2626.3,2625.8,3.81519]
[1727336300226,3.04612,2626.3,2625.8,6.8618]
[1727336300382,3.04612,2626.3,2625.8,3.81519]
[1727336300582,3.04612,2626.3,2625.8,4.88176273]
[1727336300989,0.7879,2626.4,2625.8,4.88176273]
[1727336301194,0.7879,2626.4,2625.9,3.11435973]
[1727336302512,3.83391,2626.4,2625.9,3.11435973]
[1727336302759,3.83391,2626.4,2625.9,0.06780973]
[1727336303019,3.83391,2626.4,2625.9,3.11436973]
[1727336305506,0.7879,2626.4,2626.0,3.04643]
[1727336305877,0.7879,2626.4,2626.1,0.0677476]
[1727336306523,0.7879,2626.4,2626.1,3.1140776]
[1727336309842,3.14080052,2626.8,2626.1,3.1140776]
[1727336309843,0.7843,2626.6,2626.2,3.04612]
[1727336310202,0.7843,2626.6,2626.3,0.06789652]
[1727336310432,0.7843,2626.6,2626.1,6.85001733]
[1727336310599,3.7764,2626.8,2626.4,0.0678148]
[1727336310798,6.82194,2626.8,2626.3,3.04604]
[1727336311038,6.82194,2626.8,2626.4,0.06783047]
[1727336313203,3.7764,2626.8,2626.4,0.06783047]
[1727336313447,0.7764,2626.8,2626.4,0.45990752]
[1727336313609,3.82194,2626.8,2626.4,0.06783047]
[1727336315274,3.04566,2626.7,2626.4,0.06783047]
[1727336315645,3.82194,2626.8,2626.3,3.04609]
[1727336315807,6.86755,2626.8,2626.5,0.06779942]
[1727336316148,6.86755,2626.8,2626.3,4.03569373]
[1727336316149,3.82194,2626.8,2626.3,3.04609]
[1727336316639,3.82194,2626.8,2626.4,0.06783047]
[1727336317206,0.0951839,2626.7,2626.4,0.06783047]
[1727336317457,0.09518389,2626.7,2626.4,0.06783047]
[1727336318315,3.14085389,2626.7,2626.2,3.04615]
[1727336318529,3.14085389,2626.7,2626.5,0.06779942]
[1727336318729,3.04567,2626.7,2626.3,3.04609]
[1727336318944,0.7764,2626.8,2626.6,0.06776836]
[1727336319241,3.82193,2626.8,2626.3,3.04609]
[1727336319456,3.82193,2626.8,2626.7,0.06773732]
[1727336319659,3.82193,2626.8,2626.3,3.04609]
[1727336319810,3.82193,2626.8,2626.7,0.06773732]
[1727336320007,3.82193,2626.8,2626.3,3.04609]
[1727336320321,3.82193,2626.8,2626.4,0.06783047]
[1727336320508,0.09518388,2626.7,2626.4,0.06783047]
[1727336320843,3.82193,2626.8,2626.4,0.06783047]
[1727336321346,6.86752,2626.8,2626.4,0.06783047]
[1727336321573,3.82193,2626.8,2626.3,3.04609]
[1727336321777,3.82193,2626.8,2626.3,4.03569373]
[1727336321953,3.82193,2626.8,2626.4,0.06783047]
[1727336322285,0.7764,2626.8,2626.4,3.11381047]
[1727336322441,0.7764,2626.8,2626.4,3.89434047]
[1727336322635,0.7764,2626.8,2626.5,3.4794065]
[1727336322863,0.7764,2626.8,2626.6,0.0676956]
[1727336327141,6.09069,2627.0,2626.6,0.0676956]
[1727336327142,0.8241,2627.0,2626.6,0.0676956]
[1727336327443,3.86945,2627.0,2626.6,0.0676956]
[1727336328585,3.86945,2627.0,2626.3,3.04603]
[1727336328746,3.04554,2626.8,2626.4,0.43370481]
[1727336328943,3.04554,2626.8,2626.5,0.43370481]
[1727336328944,3.14072134,2626.8,2626.5,0.43370481]
[1727336329158,3.14072134,2626.8,2626.3,3.04603]
[1727336329159,3.14072134,2626.8,2626.6,0.06753549]
[1727336329457,3.14072134,2626.8,2626.3,3.04603]
[1727336329655,3.14072134,2626.8,2626.7,0.06750444]
[1727336329895,3.14072134,2626.8,2626.3,3.04603]
[1727336330099,3.04554,2626.8,2626.7,0.06750444]
[1727336330552,3.04554,2626.8,2626.3,3.04603]
[1727336330752,3.04554,2626.8,2626.4,0.50088819]
[1727336331095,3.04554,2626.8,2626.4,0.06711509]
[1727336332004,3.87551,2626.9,2626.4,3.11310509]
[1727336332163,3.87553,2626.9,2626.5,0.43380189]
[1727336332357,3.87553,2626.9,2626.6,0.06705298]
[1727336332626,3.87553,2626.9,2626.4,3.74445951]
[1727336332902,3.87553,2626.9,2626.5,0.06708403]
[1727336333209,3.14070936,2626.8,2626.5,0.06708403]
[1727336333499,3.14070936,2626.8,2626.3,3.04603]
[1727336333796,3.14070936,2626.8,2626.4,0.43389667]
[1727336334097,3.14070936,2626.8,2626.5,0.5009807]
[1727336334307,3.04553,2626.8,2626.5,0.06708403]
[1727336334597,3.04553,2626.8,2626.3,6.65491923]
[1727336334796,3.04553,2626.8,2626.4,0.50102256]
[1727336335112,3.04553,2626.8,2626.5,0.43390747]
[1727336335404,3.04553,2626.8,2626.6,0.06705298]
[1727336335582,3.04553,2626.8,2626.3,3.04603]
[1727336335901,3.04566,2626.7,2626.4,0.50102452]
[1727336336069,0.8104,2626.6,2626.4,0.50102452]
[1727336336276,0.8104,2626.6,2626.4,0.06711509]
[1727336336798,0.8104,2626.6,2626.5,0.06441118]
[1727336336972,0.8104,2626.6,2626.3,3.0461]
[1727336337162,0.8104,2626.6,2626.4,0.49839946]
[1727336337363,0.8104,2626.6,2626.4,0.06444223]
[1727336338103,0.7568,2626.9,2626.4,0.81984223]
[1727336338397,3.04553,2626.8,2626.5,0.43393597]
[1727336338599,3.80221,2626.9,2626.6,0.49836702]
[1727336338899,3.80221,2626.9,2626.7,0.43393597]
[1727336339107,3.80221,2626.9,2626.6,0.06443105]
[1727336339401,3.80221,2626.9,2626.7,0.49813945]
[1727336339583,3.80221,2626.9,2626.7,0.06431997]
[1727336339766,3.80221,2626.9,2626.4,3.80135]
[1727336339969,3.80221,2626.9,2626.5,1.19226874]
[1727336340169,0.7568,2626.9,2626.6,0.43380256]
[1727336340401,0.7568,2626.9,2626.7,0.49810071]
[1727336340603,3.93949011,2627.1,2626.8,0.43379245]
[1727336340813,2.39994058,2627.5,2626.9,1.82118384]
[1727336340971,3.8778175,2627.6,2627.3,1.75696233]
[1727336341164,3.8778175,2627.6,2627.1,1.75696233]
[1727336341372,3.8778175,2627.6,2627.2,0.43358809]
[1727336341606,3.8778175,2627.6,2627.1,1.75696233]
[1727336341775,3.13986253,2627.5,2627.2,0.06412111]
[1727336342102,3.13986253,2627.5,2626.8,3.04544]
[1727336342103,3.87055,2627.3,2626.8,3.04544]
[1727336342308,0.8256,2627.3,2626.9,0.91371935]
[1727336342470,0.8256,2627.3,2626.9,0.48024023]
[1727336343593,0.8256,2627.3,2626.9,3.52564023]
[1727336343911,0.7773,2627.5,2627.1,3.04512]
[1727336344134,0.7773,2627.5,2627.2,3.04506]
[1727336344284,0.0382175,2627.6,2627.3,3.04488]
[1727336345488,0.0382175,2627.6,2627.2,3.80499505]
[1727336345686,0.0382175,2627.6,2627.2,3.04505]
[1727336345882,0.0382175,2627.6,2627.2,1.18187201]
[1727336346189,0.0382175,2627.6,2627.3,0.06376271]
[1727336346190,3.0828275,2627.6,2627.3,0.06376271]
[1727336346391,3.0828275,2627.6,2627.2,1.18187201]
[1727336346724,3.0828275,2627.6,2627.3,0.06376271]
[1727336347110,3.0828275,2627.6,2627.2,1.18187201]
[1727336347309,3.0828275,2627.6,2627.4,0.06373168]
[1727336347512,0.0382175,2627.6,2627.3,0.06376271]
[1727336347685,0.0382175,2627.6,2627.5,0.06370065]
[1727336347686,3.0828175,2627.6,2627.5,0.06370065]
[1727336347888,3.0828175,2627.6,2627.4,0.06373168]
[1727336348090,3.0828175,2627.6,2627.5,0.06370065]
[1727336348630,3.04489,2627.4,2627.1,1.06615251]
[1727336348828,3.04489,2627.4,2627.0,0.7661]
[1727336349489,3.04477,2627.5,2626.7,3.04556]
[1727336349698,3.86898,2627.3,2626.8,4.22993789]
[1727336349896,3.86898,2627.3,2626.9,0.72754979]
[1727336350127,3.86898,2627.3,2626.7,3.04556]
[1727336350128,3.04506,2627.2,2626.7,3.04556]
[1727336350300,6.91399,2627.3,2626.7,3.04556]
[1727336350500,3.86898,2627.3,2626.7,6.09114]
[1727336350830,3.86898,2627.3,2626.8,4.11759351]
[1727336351703,0.824,2627.3,2626.8,1.07213351]
[1727336352026,0.824,2627.3,2626.8,6.85045505]
[1727336353927,3.86897,2627.3,2626.8,3.80499505]
[1727336354092,0.824,2627.3,2626.8,3.80499505]
[1727336354295,0.824,2627.3,2626.9,3.0454]
[1727336355541,3.86896,2627.3,2626.8,6.85046505]
[1727336355700,3.86896,2627.3,2626.7,3.04556]
[1727336355900,3.86896,2627.3,2626.8,3.04552]
[1727336356197,0.824,2627.3,2626.7,4.55713551]
[1727336356413,0.824,2627.3,2626.9,3.04539]
[1727336359051,3.04479,2627.5,2626.7,1.51157551]
[1727336359052,0.8264,2627.5,2627.1,3.04515]
[1727336359271,3.0382175,2627.6,2627.2,0.3942677]
[1727336359567,0.0382175,2627.6,2627.2,3.04498]
[1727336359744,3.0828275,2627.6,2627.0,3.942737]
[1727336360059,3.0828275,2627.6,2627.1,3.7439647]
[1727336361301,3.0828275,2627.6,2627.2,0.0633719]
[1727336361448,3.04472,2627.5,2627.2,0.0633719]
[1727336362064,0.0382175,2627.6,2627.2,0.0633719]
[1727336362065,0.0382175,2627.6,2627.2,3.1084319]
[1727336362239,0.0382175,2627.6,2627.3,3.12101098]
[1727336362442,0.0382175,2627.6,2627.4,1.19164812]
[1727336363636,0.0382175,2627.6,2627.4,0.06330983]
[1727336363838,0.0382175,2627.6,2627.2,3.85755]
[1727336364137,0.0382175,2627.6,2627.3,0.06334086]
[1727336364556,0.0382175,2627.6,2627.2,0.8125]
[1727336364779,0.0382175,2627.6,2627.4,0.06330983]
[1727336364949,0.0382175,2627.6,2627.3,0.06334086]
[1727336365147,0.0382175,2627.6,2627.5,0.0632788]
[1727336365393,0.0382175,2627.6,2627.4,0.06330983]
[1727336365533,0.0382175,2627.6,2627.5,0.0632788]
[1727336365932,0.0382175,2627.6,2627.3,3.04484]
[1727336366249,0.0382175,2627.6,2627.5,7.63850505]
[1727336366441,0.0382175,2627.6,2627.5,8.13397806]
[1727336366666,0.0382175,2627.6,2627.5,7.70148571]
[1727336367182,0.0382175,2627.6,2627.5,8.13387278]
[1727336367493,0.0382175,2627.6,2627.5,8.89597294]
[1727336384222,0.0382175,2627.6,2627.5,8.10717294]
[1727336384375,0.0382175,2627.6,2627.5,6.91268571]
[1727336388706,0.0382175,2627.6,2627.5,4.93886757]
[1727336394975,0.0382175,2627.6,2627.5,3.18379938]
[1727336395187,0.0382175,2627.6,2627.5,4.93886757]
[1727336396505,0.0382175,2627.6,2627.5,4.86275885]
[1727336410126,0.0382175,2627.6,2627.5,5.55665002]
[1727336410592,0.0382175,2627.6,2627.5,6.57248577]
[1727336410743,0.0382175,2627.6,2627.5,9.70080022]
[1727336410948,0.0382175,2627.6,2627.5,9.62468966]
[1727336413475,0.0382175,2627.6,2627.5,8.79248966]
[1727336413681,0.0382175,2627.6,2627.5,7.85276447]
[1727336414148,0.0382175,2627.6,2627.5,7.15878357]
[1727336414349,0.0382175,2627.6,2627.5,7.2348907]
[1727336414540,0.0382175,2627.6,2627.5,7.92906861]
[1727336414839,0.0382175,2627.6,2627.5,7.85296148]
[1727336415267,0.0382175,2627.6,2627.5,9.2215271]
[1727336415777,0.0382175,2627.6,2627.5,9.22229631]
[1727336417178,0.0382175,2627.6,2627.5,13.58481278]
[1727336417509,0.0382175,2627.6,2627.5,16.40349207]
[1727336417787,0.0382175,2627.6,2627.5,17.59850279]
[1727336417941,0.0382175,2627.6,2627.5,16.00677874]
[1727336418275,0.0382175,2627.6,2627.5,13.00677874]
[1727336418572,0.0382175,2627.6,2627.5,8.70861462]
[1727336419070,0.0382175,2627.6,2627.5,6.41182069]
[1727336419282,0.0382175,2627.6,2627.5,8.70762186]
[1727336420058,0.0382175,2627.6,2627.5,10.94258595]
[1727336420257,0.0382175,2627.6,2627.5,9.10551397]
[1727336420469,0.0382175,2627.6,2627.5,10.47920074]
[1727336423891,0.00241409,2628.0,2627.9,3.85085]
[1727336424067,0.00241409,2628.0,2627.9,6.65980493]
[1727336425086,0.15644945,2628.4,2628.0,3.04412]
[1727336425266,0.15644945,2628.4,2628.3,4.79885819]
[1727336425601,0.15644945,2628.4,2628.3,7.98886623]
[1727336425896,0.15644945,2628.4,2628.3,7.35021457]
[1727336426053,0.15644945,2628.4,2628.3,9.97580967]
[1727336426392,1.04415646,2629.2,2628.9,3.04303]
[1727336426597,1.04415646,2629.2,2629.1,1.75506819]
[1727336427090,1.04415646,2629.2,2629.1,1.81409864]
[1727336428554,1.04415646,2629.2,2629.1,4.85695864]
[1727336428750,1.04415646,2629.2,2629.1,1.81409864]
[1727336430540,1.04415646,2629.2,2629.1,0.05903045]
[1727336431058,1.04415646,2629.2,2628.9,3.04301]
[1727336431290,1.04415646,2629.2,2629.0,0.05906144]
[1727336432053,1.80905646,2629.2,2629.0,0.05906144]
[1727336432258,1.80905646,2629.2,2629.0,0.09812085]
[1727336433369,8.37979511,2629.2,2629.0,0.09812085]
[1727336433573,7.89462646,2629.2,2628.7,1.75506819]
[1727336433876,3.04322,2628.8,2628.4,7.44]
[1727336434073,3.04322,2628.8,2628.1,0.8098]
[1727336434074,3.82055,2628.6,2628.1,4.79905819]
[1727336434529,0.7771,2628.6,2628.1,4.79905819]